lending/lending_fUSD_20250425
["ID","MTS","AMOUNT","RATE_DAILY","PERIOD"]
[358919204,1745545418066,-3286.78,0.00049315,30]
[358919205,1745545418104,-500.0,0.00049315,30]
[358919206,1745545418142,-1720.77,0.00049315,30]
[358919207,1745545418192,-500.0,0.00049315,30]
[358919208,1745545418233,-500.0,0.00049315,30]
[358919209,1745545418273,-500.0,0.00049315,30]
[358919210,1745545418311,-1180.4,0.00049315,30]
[358919211,1745545418348,-500.0,0.00049315,30]
[358919212,1745545418389,-500.0,0.00049315,30]
[358919213,1745545418427,-502.18,0.00049315,30]
[358919214,1745545418466,-3075.34,0.00049315,30]
[358919215,1745545418505,-1837.7,0.00049315,30]
[358919216,1745545418546,-3115.11,0.00049315,30]
[358919217,1745545418586,-500.0,0.00049315,30]
[358919218,1745545418624,-1656.27,0.00049315,30]
[358919219,1745545418663,-1178.97,0.00049315,30]
[358919220,1745545418702,-1741.99,0.00049315,30]
[358919221,1745545418744,-919.24,0.00049315,30]
[358919222,1745545418783,-500.0,0.00049315,30]
[358919223,1745545418822,-2447.99,0.00049315,30]
[358919224,1745545418859,-500.0,0.00049315,30]
[358919225,1745545418898,-8924.7,0.00049315,30]
[358919226,1745545418943,-500.0,0.00049315,30]
[358919227,1745545418979,-1868.99,0.00049315,30]
[358919228,1745545419018,-770.76,0.00049315,30]
[358919229,1745545419055,-818.8,0.00049315,30]
[358919230,1745545419096,-500.0,0.00049315,30]
[358919231,1745545419136,-1480.64,0.00049315,30]
[358919232,1745545419176,-1584.41,0.00049315,30]
[358919233,1745545419214,-572.56,0.00049315,30]
[358919234,1745545419251,-715.9,0.00049315,30]
[358919235,1745545419292,-500.0,0.00049315,30]
[358919236,1745545419329,-500.0,0.00049315,30]
[358919237,1745545419366,-500.0,0.00049315,30]
[358919238,1745545419402,-655.98,0.00049315,30]
[358919239,1745545419723,-500.0,0.00049315,30]
[358919240,1745545419770,-2993.74,0.00049315,120]
[358919241,1745545419807,-786.19,0.00049315,30]
[358919242,1745545419845,-500.0,0.00049315,30]
[358919243,1745545419882,-500.0,0.00049315,30]
[358919244,1745545419917,-733.82,0.00049315,30]
[358919245,1745545419955,-1510.41,0.00049315,30]
[358919246,1745545419994,-760.58,0.00049315,30]
[358919247,1745545420029,-500.0,0.00049315,30]
[358919248,1745545420068,-500.0,0.00049315,30]
[358919249,1745545420107,-825.68,0.00049315,30]
[358919250,1745545420147,-1091.92,0.00049315,30]
[358919251,1745545420186,-500.0,0.00049315,30]
[358919252,1745545420238,-500.0,0.00049315,30]
[358919253,1745545420281,-500.0,0.00049315,30]
[358919254,1745545420322,-3345.59,0.00049315,30]
[358919255,1745545420364,-500.0,0.00049315,30]
[358919256,1745545420404,-964.01,0.00049315,30]
[358919257,1745545420445,-500.0,0.00049315,30]
[358919258,1745545420487,-579.02,0.00049315,30]
[358919259,1745545420526,-500.0,0.00049315,30]
[358919260,1745545420565,-500.0,0.00049315,30]
[358919261,1745545420603,-500.0,0.00049315,30]
[358919262,1745545420641,-3181.51,0.00049315,30]
[358919263,1745545420680,-307.34941629,0.00049315,30]
[358919264,1745545420719,-1127.53,0.00049315,30]
[358919265,1745545420758,-1405.73,0.00049315,30]
[358919266,1745545420794,-918.96,0.00049315,30]
[358919267,1745545420829,-500.0,0.00049315,30]
[358919268,1745545420864,-970.8,0.00049315,30]
[358919269,1745545420900,-500.0,0.00049315,30]
[358919270,1745545420942,-500.0,0.00049315,30]
[358919271,1745545420980,-1253.7,0.00049315,30]
[358919272,1745545421021,-500.0,0.00049315,30]
[358919273,1745545421059,-500.0,0.00049315,30]
[358919274,1745545421098,-1119.69,0.00049315,30]
[358919275,1745545421135,-500.0,0.00049315,30]
[358919276,1745545421173,-1770.63,0.00049315,30]
[358919277,1745545421210,-616.95,0.00049315,30]
[358919278,1745545421247,-500.0,0.00049315,30]
[358919279,1745545421285,-1266.86,0.00049315,30]
[358919280,1745545421327,-2204.65,0.00049315,30]
[358919281,1745545421367,-735.34,0.00049315,30]
[358919282,1745545421408,-845.57,0.00049315,30]
[358919283,1745545421450,-506.82,0.00049315,30]
[358919284,1745545421489,-500.0,0.00049315,30]
[358919285,1745545421528,-771.61,0.00049315,30]
[358919286,1745545421565,-797.78,0.00049315,30]
[358919287,1745545421602,-500.0,0.00049315,30]
[358919288,1745545421638,-500.0,0.00049315,30]
[358919289,1745545421681,-1617.03,0.00049315,30]
[358919290,1745545421718,-661.15,0.00049315,30]
[358919291,1745545421753,-500.0,0.00049315,30]
[358919292,1745545421789,-1431.22,0.00049315,30]
[358919293,1745545421825,-899.41,0.00049315,30]
[358919294,1745545421861,-1145.2,0.00049315,30]
[358919295,1745545421896,-823.48,0.00049315,30]
[358919296,1745545421934,-500.0,0.00049315,30]
[358919297,1745545421972,-680.92,0.00049315,30]
[358919298,1745545422011,-511.66,0.00049315,30]
[358919299,1745545422050,-2134.81,0.00049315,30]
[358919300,1745545422089,-503.98,0.00049315,30]
[358919301,1745545422128,-949.81,0.00049315,30]
[358919302,1745545422168,-500.0,0.00049315,30]
[358919303,1745545422209,-260.52833622,0.00049315,30]
[358919304,1745545422251,-1317.65,0.00049315,30]
[358919305,1745545422289,-520.85,0.00049315,30]
[358919306,1745545422326,-521.17978049,0.00049315,30]
[358919307,1745545422365,-500.0,0.00049315,30]
[358919308,1745545422402,-1006.04,0.00049315,30]
[358919309,1745545422440,-1128.15,0.00049315,30]
[358919310,1745545422476,-500.0,0.00049315,30]
[358919311,1745545422511,-34592.57,0.00049315,30]
[358919312,1745545422546,-742.75,0.00049315,30]
[358919313,1745545422581,-500.0,0.00049315,30]
[358919314,1745545422617,-500.0,0.00049315,30]
[358919315,1745545422653,-500.0,0.00049315,30]
[358919316,1745545422688,-1846.29,0.00049315,30]
[358919317,1745545422724,-581.2,0.00049315,30]
[358919318,1745545422761,-748.35,0.00049315,30]
[358919319,1745545422797,-1415.98,0.00049315,30]
[358919320,1745545422833,-1159.23,0.00049315,30]
[358919321,1745545422868,-500.0,0.00049315,30]
[358919322,1745545422907,-500.0,0.00049315,30]
[358919323,1745545422942,-500.0,0.00049315,30]
[358919324,1745545422975,-17345.41,0.00049315,30]
[358919325,1745545423011,-500.0,0.00049315,30]
[358919326,1745545423046,-945.17,0.00049315,30]
[358919327,1745545423081,-500.0,0.00049315,30]
[358919328,1745545423115,-628.22,0.00049315,30]
[358919329,1745545423149,-601.01,0.00049315,30]
[358919330,1745545423185,-521.14,0.00049315,30]
[358919331,1745545423219,-500.0,0.00049315,30]
[358919332,1745545423252,-500.0,0.00049315,30]
[358919333,1745545423288,-909.31,0.00049315,30]
[358919334,1745545423326,-1556.81,0.00049315,30]
[358919335,1745545423364,-500.0,0.00049315,30]
[358919336,1745545423400,-500.0,0.00049315,30]
[358919337,1745545423436,-500.0,0.00049315,30]
[358919338,1745545423471,-1076.02,0.00049315,30]
[358919339,1745545423507,-500.0,0.00049315,30]
[358919340,1745545423547,-551.43,0.00049315,30]
[358919341,1745545423588,-560.99,0.00049315,30]
[358919342,1745545423627,-500.0,0.00049315,30]
[358919343,1745545423912,-500.0,0.00049315,30]
[358919344,1745545423970,-743.83,0.00049315,30]
[358919345,1745545424009,-500.0,0.00049315,30]
[358919346,1745545424046,-500.0,0.00049315,30]
[358919347,1745545424081,-164.419116,0.00049315,30]
[358919348,1745545424115,-556.42657632,0.00049315,30]
[358919349,1745545424152,-716.88,0.00049315,30]
[358919350,1745545424189,-500.0,0.00049315,30]
[358919351,1745545424226,-6518.42,0.00049315,30]
[358919352,1745545424264,-6050.470095,0.00049315,30]
[358919353,1745545424300,-500.0,0.00049315,30]
[358919354,1745545424338,-500.0,0.00049315,30]
[358919355,1745545424376,-500.0,0.00049315,30]
[358919356,1745545424412,-500.0,0.00049315,30]
[358919357,1745545424452,-500.0,0.00049315,30]
[358919358,1745545424488,-500.0,0.00049315,30]
[358919359,1745545424526,-1077.87,0.00049315,30]
[358919360,1745545424567,-500.0,0.00049315,30]
[358919361,1745545424607,-599.09,0.00049315,30]
[358919362,1745545424649,-840.45,0.00049315,30]
[358919363,1745545424690,-516.8,0.00049315,30]
[358919364,1745545424732,-535.24,0.00049315,30]
[358919365,1745545424772,-500.0,0.00049315,30]
[358919366,1745545424812,-500.0,0.00049315,30]
[358919367,1745545424852,-1206.69,0.00049315,30]
[358919368,1745545424890,-530.1,0.00049315,30]
[358919369,1745545424929,-500.0,0.00049315,30]
[358919370,1745545424965,-1755.79,0.00049315,30]
[358919371,1745545425003,-1653.86,0.00049315,30]
[358919372,1745545425043,-500.0,0.00049315,30]
[358919373,1745545425082,-780.2,0.00049315,30]
[358919374,1745545425119,-606.95,0.00049315,30]
[358919375,1745545425157,-1333.8,0.00049315,30]
[358919376,1745545425192,-574.35,0.00049315,30]
[358919377,1745545425229,-782.478522,0.00049315,30]
[358919378,1745545425266,-500.0,0.00049315,30]
[358919379,1745545425302,-500.0,0.00049315,30]
[358919380,1745545425340,-2000.0,0.00049315,30]
[358919381,1745545425377,-500.0,0.00049315,30]
[358919382,1745545425415,-500.0,0.00049315,30]
[358919383,1745545425454,-583.66,0.00049315,120]
[358919384,1745545425494,-169.583062,0.00049315,30]
[358919385,1745545425534,-1414.99,0.00049315,30]
[358919386,1745545425574,-1072.46,0.00049315,30]
[358919387,1745545425612,-500.0,0.00049315,30]
[358919388,1745545425650,-1021.91,0.00049315,30]
[358919389,1745545425687,-500.0,0.00049315,30]
[358919390,1745545425723,-500.0,0.00049315,30]
[358919391,1745545425761,-1937.76,0.00049315,30]
[358919392,1745545425798,-500.0,0.00049315,30]
[358919393,1745545425836,-500.0,0.00049315,30]
[358919394,1745545425872,-500.0,0.00049315,30]
[358919395,1745545425908,-500.0,0.00049315,30]
[358919396,1745545425951,-500.0,0.00049315,30]
[358919397,1745545425987,-500.0,0.00049315,30]
[358919398,1745545426023,-1156.26,0.00049315,30]
[358919399,1745545426059,-500.0,0.00049315,120]
[358919400,1745545426097,-759.106322,0.00049315,30]
[358919401,1745545426135,-500.0,0.00049315,30]
[358919402,1745545426171,-821.73,0.00049315,30]
[358919403,1745545426209,-809.65,0.00049315,30]
[358919404,1745545426248,-500.0,0.00049315,30]
[358919405,1745545426287,-500.0,0.00049315,30]
[358919406,1745545426325,-1231.82,0.00049315,30]
[358919407,1745545426362,-500.0,0.00049315,30]
[358919408,1745545426400,-1214.56,0.00049315,30]
[358919409,1745545426437,-496.15403073,0.00049315,30]
[358919410,1745545426472,-166.307199,0.00049315,30]
[358919411,1745545426508,-500.0,0.00049315,30]
[358919412,1745545426544,-6517.27,0.00049315,30]
[358919413,1745545426581,-2849.2,0.00049315,30]
[358919414,1745545426616,-500.0,0.00049315,30]
[358919415,1745545426654,-3096.48,0.00049315,30]
[358919416,1745545426690,-500.0,0.00049315,30]
[358919417,1745545426724,-500.0,0.00049315,30]
[358919418,1745545426758,-500.0,0.00049315,30]
[358919419,1745545426793,-1964.64,0.00049315,30]
[358919420,1745545426828,-500.0,0.00049315,30]
[358919421,1745545426864,-528.4,0.00049315,30]
[358919422,1745545426904,-500.0,0.00049315,30]
[358919423,1745545426941,-500.0,0.00049315,30]
[358919424,1745545426976,-5076.34,0.00049315,30]
[358919425,1745545427017,-3017.9,0.00049315,30]
[358919426,1745545427053,-500.0,0.00049315,30]
[358919427,1745545427089,-500.0,0.00049315,30]
[358919428,1745545427128,-1363.63,0.00049315,30]
[358919429,1745545427166,-572.21,0.00049315,30]
[358919430,1745545427202,-500.0,0.00049315,30]
[358919431,1745545427240,-601.87,0.00049315,30]
[358919432,1745545427277,-1757.16,0.00049589,30]
[358919433,1745545427313,-500.0,0.00049589,30]
[358919434,1745545427350,-500.0,0.00049589,30]
[358919435,1745545427388,-500.0,0.00049589,30]
[358919436,1745545427426,-1673.18,0.00049589,30]
[358919437,1745545427462,-500.0,0.00049589,30]
[358919438,1745545427498,-797.02,0.00049589,30]
[358919439,1745545427533,-1168.97,0.00049589,30]
[358919440,1745545427568,-1038.01,0.00049589,30]
[358919441,1745545427604,-1114.87,0.00049589,30]
[358919442,1745545427641,-690.29,0.00049589,30]
[358919443,1745545427679,-500.0,0.00049589,30]
[358919444,1745545427718,-500.0,0.00049589,30]
[358919445,1745545427755,-717.48,0.00049589,30]
[358919446,1745545427793,-1062.7,0.00049589,30]
[358919447,1745545428013,-1633.77,0.00049589,30]
[358919448,1745545428055,-500.0,0.00049589,30]
[358919449,1745545428096,-1248.52,0.00049589,30]
[358919450,1745545428137,-633.48,0.00049589,30]
[358919451,1745545428177,-500.0,0.00049589,30]
[358919452,1745545428214,-500.0,0.00049589,30]
[358919453,1745545428253,-2641.69,0.00049589,30]
[358919454,1745545428291,-500.0,0.00049589,30]
[358919455,1745545428330,-2881.29,0.00049589,30]
[358919456,1745545428373,-500.0,0.00049589,30]
[358919457,1745545428412,-500.0,0.00049589,30]
[358919458,1745545428453,-500.0,0.00049589,30]
[358919459,1745545428492,-809.25,0.00049589,30]
[358919460,1745545428530,-975.25,0.00049589,30]
[358919461,1745545428568,-10337.63,0.00049589,30]
[358919462,1745545428607,-3067.16,0.00049589,30]
[358919463,1745545428650,-1318.12,0.00049589,30]
[358919464,1745545428692,-507.43,0.00049589,30]
[358919465,1745545428733,-570.23,0.00049589,30]
[358919466,1745545428773,-745.19271904,0.00049589,30]
[358919467,1745545428814,-627.41,0.00049589,30]
[358919468,1745545428856,-500.0,0.00049589,30]
[358919469,1745545428896,-500.0,0.00049589,30]
[358919470,1745545428935,-679.54,0.00049589,30]
[358919471,1745545428978,-1252.46,0.00049589,30]
[358919472,1745545429019,-500.0,0.00049589,30]
[358919473,1745545429059,-575.58,0.00049589,30]
[358919474,1745545429100,-2182.67,0.00049589,30]
[358919475,1745545429142,-521.29,0.00049589,30]
[358919476,1745545429184,-1867.96,0.00049589,30]
[358919477,1745545429225,-1074.64,0.00049589,30]
[358919478,1745545429264,-3545.51,0.00049589,30]
[358919479,1745545429303,-728.08,0.00049589,30]
[358919480,1745545429343,-672.38,0.00049589,30]
[358919481,1745545429384,-500.0,0.00049589,30]
[358919482,1745545429423,-1720.77,0.00049589,30]
[358919483,1745545429460,-3286.78,0.00049589,30]
[358919484,1745545429497,-500.0,0.00049589,30]
[358919485,1745545429531,-520.74135844,0.00049589,30]
[358919486,1745545429569,-1180.4,0.00049589,30]
[358919487,1745545429606,-500.0,0.00049589,30]
[358919488,1745545429642,-500.0,0.00049589,30]
[358919489,1745545429677,-502.18,0.00049589,30]
[358919490,1745545429713,-3075.34,0.00049589,30]
[358919491,1745545429749,-1837.7,0.00049589,30]
[358919492,1745545429785,-3115.11,0.00049589,30]
[358919493,1745545429820,-500.0,0.00049589,30]
[358919494,1745545429857,-1656.27,0.00049589,30]
[358919495,1745545429893,-1178.97,0.00049589,30]
[358919496,1745545429934,-1741.99,0.00049589,30]
[358919497,1745545429970,-919.24,0.00049589,30]
[358919498,1745545430008,-500.0,0.00049589,30]
[358919499,1745545430043,-2447.99,0.00049589,30]
[358919500,1745545430079,-500.0,0.00049589,30]
[358919501,1745545430116,-8924.7,0.00049589,30]
[358919502,1745545430152,-500.0,0.00049589,30]
[358919503,1745545430188,-1868.99,0.00049589,30]
[358919504,1745545430223,-770.76,0.00049589,30]
[358919505,1745545430259,-818.8,0.00049589,30]
[358919506,1745545430294,-500.0,0.00049589,30]
[358919507,1745545430333,-1480.64,0.00049589,30]
[358919508,1745545430369,-1584.41,0.00049589,30]
[358919509,1745545430619,-572.56,0.00049589,30]
[358919510,1745545430658,-500.0,0.00049589,30]
[358919511,1745545430694,-715.9,0.00049589,30]
[358919512,1745545430730,-183.90276374,0.00049589,30]
[358919513,1745545430766,-655.98,0.00049589,30]
[358919514,1745545430803,-500.0,0.00049589,30]
[358919515,1745545430839,-500.0,0.00049589,30]
[358919516,1745545430877,-786.19,0.00049589,30]
[358919517,1745545430916,-578.67088639,0.00049589,30]
[358919518,1745545430954,-500.0,0.00049589,30]
[358919519,1745545430990,-733.82,0.00049589,30]
[358919520,1745545431027,-760.58,0.00049589,30]
[358919521,1745545431062,-500.0,0.00049589,30]
[358919522,1745545431098,-1510.41,0.00049589,30]
[358919523,1745545431132,-500.0,0.00049589,30]
[358919524,1745545431168,-825.68,0.00049589,30]
[358919525,1745545431204,-1091.92,0.00049589,30]
[358919526,1745545431241,-500.0,0.00049589,30]
[358919527,1745545431277,-500.0,0.00049589,30]
[358919528,1745545431311,-500.0,0.00049589,30]
[358919529,1745545431346,-3345.59,0.00049589,30]
[358919530,1745545431382,-500.0,0.00049589,30]
[358919531,1745545431418,-964.01,0.00049589,30]
[358919532,1745545431454,-500.0,0.00049589,30]
[358919533,1745545431490,-579.02,0.00049589,30]
[358919534,1745545431526,-500.0,0.00049589,30]
[358919535,1745545431562,-500.0,0.00049589,30]
[358919536,1745545431596,-556.29393033,0.00049589,30]
[358919537,1745545431631,-3181.51,0.00049589,30]
[358919538,1745545431668,-1127.53,0.00049589,30]
[358919539,1745545431704,-1405.73,0.00049589,30]
[358919540,1745545431740,-918.96,0.00049589,30]
[358919541,1745545431774,-529.65301712,0.00049589,30]
[358919542,1745545431809,-970.8,0.00049589,30]
[358919543,1745545431843,-500.0,0.00049589,30]
[358919544,1745545431880,-471.44844487,0.00049589,30]
[358919545,1745545431917,-1253.7,0.00049589,30]
[358919546,1745545431952,-500.0,0.00049589,30]
[358919547,1745545431985,-500.0,0.00049589,30]
[358919548,1745545432020,-1119.69,0.00049589,30]
[358919549,1745545432053,-500.0,0.00049589,30]
[358919550,1745545432088,-616.95,0.00049589,30]
[358919551,1745545432296,-1770.63,0.00049589,30]
[358919552,1745545432334,-500.0,0.00049589,30]
[358919553,1745545432371,-2204.65,0.00049589,30]
[358919554,1745545432407,-1266.86,0.00049589,30]
[358919555,1745545432443,-735.34,0.00049589,30]
[358919556,1745545432476,-845.57,0.00049589,30]
[358919557,1745545432511,-506.82,0.00049589,30]
[358919558,1745545432545,-286.95252727,0.00049589,30]
[358919559,1745545432582,-771.61,0.00049589,30]
[358919560,1745545432619,-797.78,0.00049589,30]
[358919561,1745545432657,-500.0,0.00049589,30]
[358919562,1745545432696,-500.0,0.00049589,30]
[358919563,1745545432734,-1617.03,0.00049589,30]
[358919564,1745545432771,-661.15,0.00049589,30]
[358919565,1745545432807,-500.0,0.00049589,30]
[358919566,1745545432844,-1431.22,0.00049589,30]
[358919567,1745545432881,-899.41,0.00049589,30]
[358919568,1745545432918,-1145.2,0.00049589,30]
[358919569,1745545432952,-823.48,0.00049589,30]
[358919570,1745545432988,-500.0,0.00049589,30]
[358919571,1745545433023,-680.92,0.00049589,30]
[358919572,1745545433058,-511.66,0.00049589,30]
[358919573,1745545433092,-2134.81,0.00049589,30]
[358919574,1745545433129,-503.98,0.00049589,30]
[358919575,1745545433167,-500.0,0.00049589,30]
[358919576,1745545433203,-949.81,0.00049589,30]
[358919577,1745545433238,-1317.65,0.00049589,30]
[358919578,1745545433272,-520.85,0.00049589,30]
[358919579,1745545433307,-500.0,0.00049589,30]
[358919580,1745545433342,-1006.04,0.00049589,30]
[358919581,1745545433378,-1128.15,0.00049589,30]
[358919582,1745545433413,-34592.57,0.00049589,30]
[358919583,1745545433448,-500.0,0.00049589,30]
[358919584,1745545433484,-742.75,0.00049589,30]
[358919585,1745545433521,-500.0,0.00049589,30]
[358919586,1745545433560,-500.0,0.00049589,30]
[358919587,1745545433600,-500.0,0.00049589,30]
[358919588,1745545433640,-1846.29,0.00049589,30]
[358919589,1745545433681,-581.2,0.00049589,30]
[358919590,1745545433723,-748.35,0.00049589,30]
[358919591,1745545433765,-1159.23,0.00049589,30]
[358919592,1745545433806,-500.0,0.00049589,30]
[358919593,1745545433847,-500.0,0.00049589,30]
[358919594,1745545433887,-579.49824206,0.00049589,30]
[358919595,1745545433926,-1415.98,0.00049589,30]
[358919596,1745545433963,-17345.41,0.00049589,30]
[358919597,1745545434001,-500.0,0.00049589,30]
[358919598,1745545434039,-945.17,0.00049589,30]
[358919599,1745545434079,-500.0,0.00049589,30]
[358919600,1745545434120,-628.22,0.00049589,30]
[358919601,1745545434160,-601.01,0.00049589,30]
[358919602,1745545434200,-521.14,0.00049589,30]
[358919603,1745545434237,-300.13652475,0.00049589,30]
[358919604,1745545434274,-500.0,0.00049589,30]
[358919605,1745545434312,-909.31,0.00049589,30]
[358919606,1745545434350,-1556.81,0.00049589,30]
[358919607,1745545434386,-500.0,0.00049589,30]
[358919608,1745545434426,-500.0,0.00049589,30]
[358919609,1745545434467,-245.7128493,0.00049589,30]
[358919610,1745545434509,-1076.02,0.00049589,30]
[358919611,1745545434548,-628.21162134,0.00049589,30]
[358919612,1745545434588,-551.43,0.00049589,30]
[358919613,1745545434630,-560.99,0.00049589,30]
[358919614,1745545434670,-500.0,0.00049589,30]
[358919615,1745545434710,-500.0,0.00049589,30]
[358919616,1745545434751,-743.83,0.00049589,30]
[358919617,1745545434789,-500.0,0.00049589,30]
[358919618,1745545434826,-500.0,0.00049589,30]
[358919619,1745545434865,-716.88,0.00049589,30]
[358919620,1745545434906,-500.0,0.00049589,30]
[358919621,1745545434950,-6518.42,0.00049589,30]
[358919622,1745545434991,-6050.470095,0.00049589,30]
[358919623,1745545435030,-500.0,0.00049589,30]
[358919624,1745545435069,-500.0,0.00049589,30]
[358919625,1745545435109,-500.0,0.00049589,30]
[358919626,1745545435148,-500.0,0.00049589,30]
[358919627,1745545435188,-500.0,0.00049589,30]
[358919628,1745545435225,-500.0,0.00049589,30]
[358919629,1745545435263,-1077.87,0.00049589,30]
[358919630,1745545435298,-500.0,0.00049589,30]
[358919631,1745545435333,-599.09,0.00049589,30]
[358919632,1745545435368,-840.45,0.00049589,30]
[358919633,1745545435404,-516.8,0.00049589,30]
[358919634,1745545435441,-535.24,0.00049589,30]
[358919635,1745545435480,-500.0,0.00049589,30]
[358919636,1745545435519,-500.0,0.00049589,30]
[358919637,1745545435558,-1206.69,0.00049589,30]
[358919638,1745545435597,-530.1,0.00049589,30]
[358919639,1745545435634,-500.0,0.00049589,30]
[358919640,1745545435671,-1755.79,0.00049589,30]
[358919641,1745545435708,-1653.86,0.00049589,30]
[358919642,1745545435744,-500.0,0.00049589,30]
[358919643,1745545435779,-780.2,0.00049589,30]
[358919644,1745545435814,-606.95,0.00049589,30]
[358919645,1745545435852,-1333.8,0.00049589,30]
[358919646,1745545435888,-574.35,0.00049589,30]
[358919647,1745545435924,-782.478522,0.00049589,30]
[358919648,1745545435959,-500.0,0.00049589,30]
[358919649,1745545435993,-500.0,0.00049589,30]
[358919650,1745545436028,-2000.0,0.00049589,30]
[358919651,1745545436063,-500.0,0.00049589,30]
[358919652,1745545436099,-500.0,0.00049589,30]
[358919653,1745545436134,-583.66,0.00049589,120]
[358919654,1745545436331,-1414.99,0.00049589,30]
[358919655,1745545436409,-1072.46,0.00049589,30]
[358919656,1745545436448,-500.0,0.00049589,30]
[358919657,1745545436487,-1021.91,0.00049589,30]
[358919658,1745545436526,-500.0,0.00049589,30]
[358919659,1745545436569,-523.8749985,0.00049589,30]
[358919660,1745545436607,-1937.76,0.00049589,30]
[358919661,1745545436645,-500.0,0.00049589,30]
[358919662,1745545436683,-500.0,0.00049589,30]
[358919663,1745545436719,-500.0,0.00049589,30]
[358919664,1745545436756,-500.0,0.00049589,30]
[358919665,1745545436792,-500.0,0.00049589,30]
[358919666,1745545436828,-500.0,0.00049589,30]
[358919667,1745545436863,-1156.26,0.00049589,30]
[358919668,1745545436898,-581.03840177,0.00049589,120]
[358919669,1745545436937,-759.106322,0.00049589,30]
[358919670,1745545436972,-500.0,0.00049589,30]
[358919671,1745545437008,-821.73,0.00049589,30]
[358919672,1745545437042,-809.65,0.00049589,30]
[358919673,1745545437077,-500.0,0.00049589,30]
[358919674,1745545437115,-500.0,0.00049589,30]
[358919675,1745545437151,-1231.82,0.00049589,30]
[358919676,1745545437187,-500.0,0.00049589,30]
[358919677,1745545437222,-1214.56,0.00049589,30]
[358919678,1745545437256,-500.0,0.00049589,30]
[358919679,1745545437293,-6517.27,0.00049589,30]
[358919680,1745545437328,-2849.2,0.00049589,30]
[358919681,1745545437364,-218.13582907,0.00049589,30]
[358919682,1745545437402,-3096.48,0.00049589,30]
[358919683,1745545437438,-500.0,0.00049589,30]
[358919684,1745545437473,-500.0,0.00049589,30]
[358919685,1745545437509,-500.0,0.00049589,30]
[358919686,1745545437544,-1964.64,0.00049589,30]
[358919687,1745545437581,-500.0,0.00049589,30]
[358919688,1745545437619,-528.4,0.00049589,30]
[358919689,1745545437656,-500.0,0.00049589,30]
[358919690,1745545437691,-500.0,0.00049589,30]
[358919691,1745545437726,-5076.34,0.00049589,30]
[358919692,1745545437762,-3017.9,0.00049589,30]
[358919693,1745545437803,-500.0,0.00049589,30]
[358919694,1745545437839,-530.9482349,0.00049589,30]
[358919695,1745545437875,-1363.63,0.00049589,30]
[358919696,1745545437916,-572.21,0.00049589,30]
[358919697,1745545437951,-500.0,0.00049589,30]
[358919698,1745545437990,-1757.16,0.00049863,30]
[358919699,1745545438028,-500.0,0.00049863,30]
[358919700,1745545438067,-500.0,0.00049863,30]
[358919701,1745545438122,-500.0,0.00049863,30]
[358919702,1745545438162,-1673.18,0.00049863,30]
[358919703,1745545438202,-500.0,0.00049863,30]